[Event "Italian-ch Teams-B 2022"]
[Site "Montesilvano"]
[Date "2022.04.20"]
[Round "3.1"]
[White "Mastrovasilis, Dimitrios"]
[Black "Rombaldoni, Denis"]
[Result "1/2-1/2"]
[ECO "B07"]
[WhiteElo "2618"]
[BlackElo "2485"]
[Annotator "TA"]
[PlyCount "83"]
[EventDate "2022.04.19"]
[EventType "team-tourn"]
[EventCountry "ITA"]
[SourceTitle "playchess.com"]
[Source "ChessBase"]
[SourceQuality "1"]
[TimeControl "40/5400+30:1800+30"]

{[%evp 15,83,37,38,26,43,39,41,33,43,29,29,22,27,30,54,47,53,44,43,37,64,64,64,34,41,36,54,47,77,0,0,0,0,-8,-12,-8,32,32,40,41,45,16,45,45,45,43,45,45,45,45,45,45,45,45,45,45,45,45,45,45,45,45,45,0,45,0,45,45,47,0]} 1. e4 {[%emt 0:02:00]} d6 {[%emt 0:02:05]} 2. d4 {[%emt 0:00:11]} Nf6 {[%emt 0:00:05]} 3. Nc3 {[%emt 0:00:09]} e5 {[%emt 0:00:11]} 4. dxe5 {[%emt 0:00:25]} dxe5 {[%emt 0:00:04]} 5. Qxd8+ {[%emt 0:00:12]} Kxd8 {[%emt 0:00:03]} 6. Bc4 {[%emt 0:00:09]} Ke8 {[%emt 0:00:42]} 7. Nf3 {[%emt 0:00:11]} Bd6 {[%emt 0:00:19]} 8. Bg5 {[%emt 0:00:13]} Nbd7 {[%emt 0:00:17]} 9. O-O-O {[%emt 0:00:17][%cal Ba1d1,Bd1d3,Bd3f3][%mdl 32] B07: Pirc Defence: Miscellaneous Systems.} a6 {[%emt 0:00:29]} 10. a4 {[%emt 0:00:07]} h6 {[%emt 0:00:32]} 11. Bh4 {[%emt 0:00:10]} Nb6 {[%emt 0:05:14]} 12. Bb3 {[%emt 0:09:33]} Bg4 {[%emt 0:01:00]} 13. Bxf6 {[%emt 0:03:36]} gxf6 {[%emt 0:01:37]} 14. Rd3 {[%emt 0:14:33] [#]} Bb4 $146 {[%emt 0:13:32]} ({Predecessor:} 14... Rd8 15. h3 Be6 16. Rhd1 Nd7 17. R3d2 Nc5 18. Bd5 Be7 19. Bxe6 fxe6 20. Rxd8+ Bxd8 {½-½ (37) Sternik,R (1949)-Vorobjev,A (2040) LSS email 2018}) 15. Rhd1 {[%emt 0:07:03]} Rg8 {[%emt 0:17:52]} 16. h3 {[%emt 0:09:19]} Be6 {[%emt 0:09:15]} 17. Nh4 {[%emt 0:13:50]} c6 {[%emt 0:13:06] Prevents Nd5.} 18. Ne2 {[%emt 0:07:59]} Bc5 {[%emt 0:09:50]} 19. Rf3 {[%emt 0:02:54]} Rd8 {[%emt 0:01:11]} 20. g4 {[%emt 0:14:09]} ({Don't go for} 20. Rxf6 $2 Bxb3 21. Rxd8+ (21. cxb3 $2 Be7 $19) 21... Kxd8 $19) 20... Rxd1+ {[%emt 0:09:12]} 21. Kxd1 {[%emt 0:00:03]} Ke7 {[%emt 0:00:36]} 22. Nf5+ {[%emt 0:05:34]} (22. Ng3 $16) 22... Bxf5 $11 {[%emt 0:01:05]} 23. Rxf5 {[%emt 0:00:07]} Nc8 {[%emt 0:01:12]} 24. Ng3 {[%emt 0:02:56]} Nd6 {[%emt 0:00:06]} 25. Rf3 {[%emt 0:00:17]} Bd4 {[%emt 0:03:48]} (25... h5 $5) 26. c3 {[%emt 0:00:51]} Ba7 {[%emt 0:00:40][%cal Oh6h5]} 27. Ke2 {[%emt 0:00:56]} Rb8 {[%emt 0:02:58]} 28. Rd3 {[%emt 0:01:44]} a5 {[%emt 0:03:20]} 29. Rd2 {[%emt 0:01:05]} Bc5 {[%emt 0:02:35]} 30. Ba2 {[%emt 0:02:25]} Bb6 {[%emt 0:00:31]} 31. Kf3 {[%emt 0:01:19]} Rd8 {[%emt 0:01:01]} 32. h4 {[%emt 0:00:55]} Kf8 {[%emt 0:01:00]} 33. h5 {[%emt 0:00:45]} Bc7 {[%emt 0:00:39]} 34. Ke2 {[%emt 0:00:35]} Ke8 {[%emt 0:00:20]} 35. Rd3 {[%emt 0:00:24]} Rd7 {[%emt 0:00:26]} 36. Rd1 {[%emt 0:00:43]} Rd8 {[%emt 0:00:41]} 37. Bb3 {[%emt 0:00:40]} Rd7 {[%emt 0:00:10]} 38. Bc2 {[%emt 0:00:29]} Rd8 {[%emt 0:00:45]} 39. Bb3 {[%emt 0:00:33]} Rd7 {[%emt 0:00:02]} 40. Bc2 {[%emt 0:00:31]} Rd8 {[%emt 0:00:10]} 41. Bd3 {[%emt 0:30:31]} Rd7 {[%emt 0:19:15]} 42. Bc2 {[%emt 0:00:00] Weighted Error Value: White=0.08 (flawless) /Black=0.06 (flawless)} (42. f3 $14) 1/2-1/2

[Event "Italian-ch Teams-B 2022"]
[Site "Montesilvano"]
[Date "2022.04.20"]
[Round "3.1"]
[White "Moroni, Luca Jr"]
[Black "Fier, Alexandr"]
[Result "1-0"]
[ECO "A48"]
[WhiteElo "2588"]
[BlackElo "2583"]
[Annotator "TA"]
[PlyCount "181"]
[EventDate "2022.04.19"]
[EventType "team-tourn"]
[EventCountry "ITA"]
[SourceTitle "playchess.com"]
[Source "ChessBase"]
[SourceQuality "1"]
[TimeControl "40/5400+30:1800+30"]

{[%evp 43,181,-32,0,0,0,-4,0,0,70,67,71,51,71,67,64,13,69,65,126,127,113,102,141,142,210,209,346,331,460,460,422,355,350,336,331,0,145,0,338,316,283,181,190,192,186,183,177,0,0,0,175,175,175,175,175,175,188,107,113,109,187,0,35,0,181,187,191,200,233,233,233,233,233,233,233,233,233,233,233,233,233,233,2337,984,2595,2655,2595,2202,3492,3464,3168,1504,3596,975,3554,233,233,233,233,0,2856,1177,3286,1842,1311,1321,1198,1092,4133,2271,29966,29966,29976,29977,29977,967,29976,29977,29981,29982,29982,29982,29982,0,29981,29981,29980,29981,29981,29982,29982,29983,29983,29981,29981,29981,29983,29984,29994,29995]} 1. b3 {[%emt 0:01:22]} Nf6 {[%emt 0:01:11]} 2. Bb2 {[%emt 0:00:07]} g6 {[%emt 0:00:04]} 3. Nf3 {[%emt 0:00:06]} Bg7 {[%emt 0:00:03]} 4. e3 {[%emt 0:00:04]} c5 {[%emt 0:00:27]} 5. d4 {[%emt 0:00:16]} cxd4 {[%emt 0:00:06]} 6. exd4 {[%emt 0:02:04]} d5 {[%emt 0:00:05]} 7. Nbd2 {[%emt 0:02:11]} O-O {[%emt 0:00:09]} 8. Be2 {[%emt 0:10:04]} Nc6 {[%emt 0:00:05]} 9. O-O {[%emt 0:00:09]} Bf5 {[%emt 0:01:02]} 10. Nh4 {[%emt 0:09:19]} Bd7 {[%emt 0:00:39]} 11. c4 {[%emt 0:06:57]} Rc8 {[%emt 0:00:52]} 12. Re1 {[%emt 0:01:33]} Re8 {[%emt 0:03:35]} 13. Ndf3 {[%emt 0:06:03]} Bg4 {[%emt 0:05:04]} 14. h3 {[%emt 0:03:28]} Bxf3 {[%emt 0:00:16]} 15. Nxf3 {[%emt 0:00:06]} e6 {[%emt 0:00:03]} 16. Ne5 {[%emt 0:04:29]} dxc4 {[%emt 0:00:47]} 17. Nxc6 {[%emt 0:00:55]} bxc6 {[%emt 0:01:44]} 18. bxc4 {[%emt 0:01:35]} c5 {[%emt 0:04:49]} 19. dxc5 {[%emt 0:02:59]} Nd7 {[%emt 0:01:10]} 20. Bxg7 {[%emt 0:02:23]} Kxg7 {[%emt 0:00:13]} 21. Qd4+ {[%emt 0:06:53]} Nf6 {[%emt 0:01:44]} 22. Qc3 {[%emt 0:03:04]} Qc7 {[%emt 0:00:06]} 23. Bf1 {[%emt 0:02:42]} Red8 {[%emt 0:01:58]} 24. Rab1 {[%emt 0:04:36]} Qxc5 {[%emt 0:02:23]} 25. Rb7 {[%emt 0:01:27]} Rc7 {[%emt 0:10:13]} (25... Rc6 $1 $11) 26. Rxc7 $14 {[%emt 0:03:31]} Qxc7 {[%emt 0:00:02]} 27. c5 {[%emt 0:01:01]} Rc8 {[%emt 0:06:34]} 28. Rc1 {[%emt 0:00:53]} e5 {[%emt 0:01:33]} 29. c6 {[%emt 0:04:02]} (29. g3 $14) 29... Qd6 {[%emt 0:01:48]} (29... Nd5 $11 30. Qb3 Nf4) 30. g3 {[%emt 0:03:56]} Rc7 {[%emt 0:03:11]} (30... Ne4 $14 31. Qe3 Rxc6) 31. Bg2 $1 $16 {[%emt 0:00:45]} Ne8 {[%emt 0:03:27]} 32. Rb1 {[%emt 0:03:33]} h5 {[%emt 0:02:00]} 33. Rb7 {[%emt 0:02:50]} h4 {[%emt 0:01:36]} (33... Re7 $16 34. Qa5 Nc7 35. Qxa7 (35. Rxa7 e4 $16) 35... e4) 34. gxh4 $18 {[%emt 0:00:52]} Nf6 {[%emt 0:03:08]} (34... Qd1+ {was worth a try.} 35. Kh2 Qd6) 35. Qa5 $18 {[%emt 0:05:20]} Rxc6 {[%emt 0:03:04]} 36. Bxc6 {[%emt 0:00:10]} Qxc6 {[%emt 0:00:02]} 37. Qxa7 {[%emt 0:00:43]} Qc1+ {[%emt 0:00:47]} 38. Kg2 $1 {[%emt 0:00:08]} ({Less strong is} 38. Kh2 Ng4+ 39. Kg2 (39. hxg4 Qf4+ 40. Kg2 Qxg4+ 41. Kh2 Qf4+ 42. Kh3 Qf3+ 43. Kh2 Qf4+ 44. Kg1 Qg4+ 45. Kh1 Qh3+ 46. Kg1 Qg4+ 47. Kh2 Qf4+ $11) 39... Qc6+ 40. Kg3 Nh6 $16) 38... Qc6+ {[%emt 0:00:03]} 39. Kg1 {[%emt 0:00:10]} (39. Kg3 $18 {and White stays clearly on top.} Qd5 40. Kh2) 39... Qc1+ $16 {[%emt 0:00:03]} 40. Kg2 $2 {[%emt 0:00:14]} (40. Kh2 $16 Ng4+ 41. Kg2 (41. hxg4 Qf4+ 42. Kg2 Qxg4+ 43. Kf1 Qd1+ 44. Kg2 Qg4+ 45. Kh1 Qxh4+ 46. Kg2 Qg4+ 47. Kf1 Qd1+ 48. Kg2 Qg4+ 49. Kh2 Qh4+ 50. Kg2 Qg4+ $11) 41... Qc6+ 42. Kg3) 40... Qc6+ $1 $18 {[%emt 0:00:03]} 41. Kh2 {[%emt 0:30:09]} Qc4 {[%emt 0:30:02]} 42. a4 {[%emt 0:07:36]} Ng4+ {[%emt 0:00:56]} 43. Kg1 $1 {[%emt 0:00:00]} ({Inferior is} 43. hxg4 Qf4+ 44. Kg2 Qxg4+ 45. Kf1 Qd1+ 46. Kg2 Qg4+ 47. Kh1 Qf3+ 48. Kh2 Qf4+ 49. Kh1 Qf3+ 50. Kh2 Qf4+ 51. Kh1 Qf3+ $11) 43... Qc1+ {[%emt 0:00:00]} 44. Kg2 {[%emt 0:00:00]} Qc6+ {[%emt 0:00:00]} 45. Kg1 {[%emt 0:00:00]} Qc1+ {[%emt 0:00:00]} 46. Kg2 {[%emt 0:00:00]} Qc6+ {[%emt 0:00:00]} 47. Kg3 {[%emt 0:00:00]} Nh6 {[%emt 0:00:00]} 48. Kh2 {[%emt 0:00:00]} Qe4 {[%emt 0:00:00]} 49. Rd7 $1 {[%emt 0:00:00]} Qxh4 {[%emt 0:00:00]} 50. Qc5 {[%emt 0:00:27]} ({White should try} 50. Rc7 $1 $18) 50... Qf4+ $16 {[%emt 0:00:00]} 51. Kg1 {[%emt 0:00:35]} Qg5+ {[%emt 0:00:00]} (51... Ng4 $16) 52. Kh2 $2 {[%emt 0:01:17]} (52. Kf1 $18) 52... Qf4+ $14 {[%emt 0:00:00]} 53. Kg1 {[%emt 0:00:18]} (53. Kg2 $14 Nf5 54. a5) 53... Qg5+ $1 $18 {[%emt 0:00:00]} 54. Kf1 {[%emt 0:02:21]} Qf5 {[%emt 0:00:00]} 55. Rd8 {[%emt 0:00:30]} Qxh3+ {[%emt 0:00:00]} 56. Ke1 {[%emt 0:00:10]} Qh1+ {[%emt 0:00:00]} 57. Kd2 {[%emt 0:00:00]} Qh2 {[%emt 0:00:00]} 58. a5 {[%emt 0:01:51]} Qf4+ {[%emt 0:00:00]} 59. Kc3 {[%emt 0:01:10]} Nf5 {[%emt 0:15:00]} 60. a6 {[%emt 0:00:23]} Nd4 {[%emt 0:00:03]} 61. Rxd4 {[%emt 0:00:37]} Qc1+ {[%emt 0:00:01]} 62. Kb4 {[%emt 0:00:07]} Qb2+ $2 {[%emt 0:00:02] [#]} (62... Qb1+ 63. Kc4 exd4) 63. Kc4 $1 $18 {[%emt 0:00:45]} Qa2+ {[%emt 0:00:04]} 64. Kb5 {[%emt 0:00:28]} exd4 {[%emt 0:00:02]} 65. Qxd4+ {[%emt 0:00:04]} Kh7 {[%emt 0:00:02]} 66. a7 {[%emt 0:00:50]} Qb3+ {[%emt 0:00:50]} 67. Kc6 {[%emt 0:00:44]} Qe6+ {[%emt 0:00:14]} 68. Kc7 {[%emt 0:00:32]} Qe7+ {[%emt 0:00:46]} 69. Kb6 $2 {[%emt 0:00:21]} (69. Qd7 Qc5+ 70. Kb7 Qb4+ 71. Kc8) 69... Qe6+ $18 {[%emt 0:00:05]} 70. Kb7 {[%emt 0:00:22]} Qe7+ {[%emt 0:00:05]} 71. Kc6 $2 {[%emt 0:00:25]} (71. Ka6 Qa3+ 72. Kb6 Qb3+ 73. Kc7) 71... Qe6+ $1 $18 {[%emt 0:00:04]} 72. Qd6 {[%emt 0:00:22]} Qc4+ {[%emt 0:02:27]} 73. Kb6 {[%emt 0:00:02]} Qb3+ {[%emt 0:00:35]} 74. Kc7 {[%emt 0:00:18]} Qa4 {[%emt 0:02:28]} 75. Qc5 {[%emt 0:00:18]} Qe4 {[%emt 0:00:03]} 76. Kd8 {[%emt 0:01:35]} Kg7 {[%emt 0:04:03]} 77. Qc3+ {[%emt 0:00:22]} Kg8 {[%emt 0:00:47]} 78. Qc8 {[%emt 0:00:43]} Kf8 {[%emt 0:00:34]} 79. Kd7+ {[%emt 0:00:39]} (79. Kc7+ $142 Kg7 80. a8=Q Qf4+ 81. Kc6 Qf3+ 82. Kd6 Qf6+ 83. Kd5 Qf3+ 84. Ke5 Qh5+ 85. Kf4 Qh6+ 86. Kg3) 79... Kg7 $18 {[%emt 0:00:02]} 80. a8=Q {[%emt 0:01:09]} Qe6+ {[%emt 0:00:06]} 81. Kc7 {[%emt 0:00:00]} Qe5+ {[%emt 0:00:04]} 82. Kb6 {[%emt 0:00:00]} Qb2+ {[%emt 0:00:05]} 83. Ka5 $2 {[%emt 0:00:22]} (83. Kc6 {mates} Qc1+ 84. Kd5 Qh1+ 85. Kd4 Qd1+ 86. Ke3 Qe1+ 87. Kf3 Qh1+ 88. Ke2) 83... Qa2+ $2 {[%emt 0:00:18][%mdl 8192]} (83... Qa3+ $11 84. Kb6 Qb4+ 85. Kc6 Qc4+ 86. Kd6 Qf4+ 87. Kd5 Qd2+ 88. Ke5 Qb2+ 89. Kd6 Qf6+ 90. Kd5 Qg5+ 91. Kc4 Qc1+ 92. Kd3 Qf1+ 93. Ke3 Qe1+ 94. Kf3 Qh1+ 95. Ke2 Qxa8) 84. Kb4 {[%emt 0:00:09]} Qb2+ {[%emt 0:00:05]} 85. Kc4 {[%emt 0:00:03]} Qc2+ {[%emt 0:00:04]} 86. Kd4 {[%emt 0:00:25]} Qxf2+ {[%emt 0:00:05]} 87. Kc3 {[%emt 0:00:07]} Qe1+ {[%emt 0:00:10]} 88. Kc2 {[%emt 0:01:25]} Qe2+ {[%emt 0:00:06]} 89. Kc1 {[%emt 0:00:55]} Qe1+ {[%emt 0:00:04] [#]} 90. Kb2 $1 {[%emt 0:00:24]} Qb4+ {[%emt 0:00:03]} 91. Kc2 {[%emt 0:00:16]} 1-0

[Event "Italian-ch Teams-B 2022"]
[Site "Montesilvano"]
[Date "2022.04.20"]
[Round "3.1"]
[White "Dervishi, Erald"]
[Black "Lazic, Miroljub"]
[Result "1-0"]
[ECO "C92"]
[WhiteElo "2511"]
[BlackElo "2322"]
[Annotator "TA"]
[PlyCount "153"]
[EventDate "2022.04.19"]
[EventType "team-tourn"]
[EventCountry "ITA"]
[SourceTitle "playchess.com"]
[Source "ChessBase"]
[SourceQuality "1"]
[TimeControl "40/5400+30:1800+30"]

{[%evp 26,153,14,22,30,38,35,28,28,26,26,0,0,0,139,16,15,15,44,0,16,0,0,0,0,0,8,-8,41,39,41,25,34,26,23,0,0,2,6,0,69,0,0,0,0,0,0,0,0,0,0,0,46,46,46,46,46,0,0,0,0,0,0,0,0,0,0,0,0,0,0,0,0,0,0,0,0,0,0,0,0,0,0,0,0,0,0,0,0,0,0,0,0,0,0,0,0,0,54,54,54,0,12832,12832,12833,12833,12841,0,0,0,12837,12837,12837,12838,12839,12839,12839,12840,12840,12841,12841,12841,12841,1921,825,993,795,687,585,576]} 1. e4 {[%emt 0:02:40]} e5 {[%emt 0:00:03]} 2. Nf3 {[%emt 0:00:05]} Nc6 {[%emt 0:00:06]} 3. Bb5 {[%emt 0:00:06]} a6 {[%emt 0:00:04]} 4. Ba4 {[%emt 0:00:05]} Nf6 {[%emt 0:00:08]} 5. O-O {[%emt 0:00:10]} Be7 {[%emt 0:00:05]} 6. Re1 {[%emt 0:00:34]} b5 {[%emt 0:00:03]} 7. Bb3 {[%emt 0:00:05]} d6 {[%emt 0:00:05]} 8. c3 {[%emt 0:00:06]} O-O {[%emt 0:00:06]} 9. h3 {[%emt 0:00:11]} Re8 {[%emt 0:00:31]} 10. d4 {[%emt 0:05:33]} Bf8 {[%emt 0:00:31]} 11. Nbd2 {[%emt 0:02:36]} Bb7 {[%emt 0:08:11]} 12. a3 {[%emt 0:06:00]} g6 {[%emt 0:02:58]} 13. Ba2 {[%emt 0:13:47] 13.Bc2 deserves study.} Bg7 {[%emt 0:00:35]} 14. b4 {[%emt 0:04:51]} exd4 {[%emt 0:25:27] C92: Closed Ruy Lopez: 9...Be6, Karpov and Flohr-Zaitsev Variations.} 15. cxd4 {[%emt 0:01:10]} a5 {[%emt 0:00:52]} 16. Qb3 {[%emt 0:10:13]} Qd7 {[%emt 0:02:45][%cal Of6e4] White has an edge.} 17. Bb2 {[%emt 0:00:34]} axb4 {[%emt 0:12:49]} 18. axb4 {[%emt 0:00:27]} Ra4 {[%emt 0:00:24]} 19. Bc3 {[%emt 0:00:27] [#]} Nd8 $146 {[%emt 0:04:00]} (19... Nh5 $11) ({Predecessor:} 19... Nh5 20. Bb1 Rxa1 21. Bxa1 Nf4 22. Bc3 d5 23. e5 Ne7 24. Qd1 Qc6 25. Qc1 Bc8 {1-0 (77) Inarkiev,E (2723)-Oparin,G (2625) Moscow 2017}) 20. Bb1 {[%emt 0:09:22]} (20. d5 $16) 20... Rxa1 $11 {[%emt 0:01:47]} 21. Bxa1 {[%emt 0:00:06]} Ne6 {[%emt 0:05:20]} 22. g3 {[%emt 0:15:45]} (22. d5 {is more complex.} Nf4 23. Bd4 c6 24. Qb2) 22... h6 {[%emt 0:14:01]} 23. Bd3 {[%emt 0:09:20]} Ng5 {[%emt 0:00:32]} 24. Nxg5 {[%emt 0:00:45]} hxg5 {[%emt 0:00:02]} 25. Qc2 {[%emt 0:01:00]} Nd5 {[%emt 0:05:52]} 26. Rb1 {[%emt 0:01:28] [#]} Nb6 {[%emt 0:00:16]} (26... Qxh3 $1 $11 27. Bf1 Ne3 $1 28. Qxc7 Nxf1 29. Rxf1 Bxe4 30. Nxe4 Rxe4) 27. d5 $14 {[%emt 0:02:11]} Bxa1 {[%emt 0:04:31]} 28. Rxa1 {[%emt 0:00:37]} c6 $1 {[%emt 0:00:02]} 29. dxc6 {[%emt 0:06:51]} Bxc6 {[%emt 0:00:11]} 30. Rc1 {[%emt 0:03:45]} Rc8 {[%emt 0:02:27][%cal Oc6e4]} 31. Qb2 {[%emt 0:00:01]} d5 {[%emt 0:02:28]} ({Much less strong is} 31... Qxh3 32. Qd4 Be8 33. Rxc8 Nxc8 34. Nf3 $14) 32. exd5 {[%emt 0:03:06]} Nxd5 {[%emt 0:02:09]} (32... Qxd5 $11 33. Be4 Qe6) 33. Be4 {[%emt 0:01:20]} (33. Ne4 $14) 33... Nb6 $11 {[%emt 0:05:23]} 34. Bxc6 {[%emt 0:00:56]} Rxc6 {[%emt 0:00:02]} 35. Ne4 {[%emt 0:00:18]} Rxc1+ {[%emt 0:00:57]} 36. Qxc1 {[%emt 0:00:01] aiming for Nf6+.} Qe7 {[%emt 0:01:36] Prevents Nf6+.} 37. Nxg5 {[%emt 0:01:15]} Nd5 {[%emt 0:00:21]} 38. h4 {[%emt 0:00:27]} Nxb4 {[%emt 0:01:08]} (38... Qxb4 $11 {was preferrable.} 39. Qa1 Nc3) 39. Qc8+ $14 {[%emt 0:00:29]} Kg7 $1 {[%emt 0:00:02]} 40. Qc3+ $1 {[%emt 0:00:56]} f6 {[%emt 0:00:49]} 41. Nf3 {[%emt 0:30:48]} (41. Nh3 $1 $14 {might be stronger.}) 41... Nd5 $11 {[%emt 0:30:26]} 42. Qd4 {[%emt 0:00:19]} Nc7 {[%emt 0:00:00]} 43. h5 {[%emt 0:00:00]} gxh5 {[%emt 0:00:00]} 44. Nh4 {[%emt 0:00:00] Hoping for Nf5+.} Kf7 {[%emt 0:00:00]} 45. Qd1 {[%emt 0:00:00]} Ke8 {[%emt 0:00:00]} 46. Qxh5+ {[%emt 0:00:00]} Kd7 {[%emt 0:00:00]} 47. Nf5 {[%emt 0:00:00]} Qe5 {[%emt 0:00:00]} 48. Qg4 {[%emt 0:00:00]} Kc6 {[%emt 0:00:00]} 49. Ne3 {[%emt 0:00:00]} Qe6 {[%emt 0:00:00]} 50. Qf3+ {[%emt 0:00:38]} Kb6 {[%emt 0:00:00]} 51. Qd1 {[%emt 0:00:55]} b4 {[%emt 0:00:55]} 52. Qd4+ {[%emt 0:00:08]} Kb5 {[%emt 0:00:13]} 53. Qd3+ {[%emt 0:00:09]} Kb6 {[%emt 0:00:46]} 54. Nc4+ {[%emt 0:00:27]} Kc5 {[%emt 0:00:16]} 55. Nd2 {[%emt 0:00:11]} Nd5 {[%emt 0:02:16]} 56. Qc4+ {[%emt 0:00:38]} Kb6 {[%emt 0:00:35]} 57. Qd4+ {[%emt 0:00:32]} Kc7 {[%emt 0:01:52]} 58. Qa7+ {[%emt 0:00:37]} Kd8 {[%emt 0:00:12]} 59. Nf3 {[%emt 0:00:48]} Qd7 {[%emt 0:01:03]} 60. Qc5 {[%emt 0:01:57]} Qb7 {[%emt 0:00:26]} 61. Nd4 {[%emt 0:00:15] Nc6+ is the strong threat.} Ne7 {[%emt 0:01:39] Prevents Nc6+.} (61... Kd7 $1 $11 62. Qc4 Qa8) 62. Qd6+ $14 {[%emt 0:02:22]} Ke8 {[%emt 0:00:06]} 63. Ne6 {[%emt 0:00:16]} ({Don't play} 63. Qxf6 b3 64. Qh8+ Kf7 $11) (63. Qe6 $14) 63... b3 $2 {[%emt 0:00:57][%mdl 8192]} (63... Qe4 $11) 64. Nc7+ $18 {[%emt 0:00:12]} Kf7 {[%emt 0:00:09]} 65. Qe6+ {[%emt 0:00:08]} Kg6 {[%emt 0:00:01] [#]} 66. Qxe7 $2 {[%emt 0:01:23]} ({Only move:} 66. Qg4+ $1 $18 Kh6 67. Ne6) 66... b2 $11 {[%emt 0:00:03]} 67. Qe8+ {[%emt 0:00:06]} Kg7 $2 {[%emt 0:01:29][%mdl 8192]} (67... Kh6 $11 68. Qh8+ Kg6 69. Qe8+ Kh6 70. Qe3+ Kg7 71. Qe7+ Kg6 72. Qe8+) 68. Ne6+ $18 {[%emt 0:00:29] White is clearly winning.} Kh7 {[%emt 0:00:07]} 69. Qh5+ {[%emt 0:00:17]} Kg8 {[%emt 0:00:22]} 70. Qg6+ {[%emt 0:00:09]} Kh8 {[%emt 0:00:02]} 71. Qxf6+ {[%emt 0:00:30]} Kg8 {[%emt 0:00:15]} 72. Qg6+ {[%emt 0:01:04]} Kh8 {[%emt 0:00:01]} 73. Qb1 {[%emt 0:00:55]} Qb3 {[%emt 0:01:10]} 74. Nd4 {[%emt 0:00:53]} Qc3 {[%emt 0:00:12]} 75. Ne2 {[%emt 0:00:26]} Qd2 {[%emt 0:00:03]} 76. Kf1 {[%emt 0:00:13] And now f4 would win.} Kg7 {[%emt 0:00:12]} 77. f4 {[%emt 0:00:10] Weighted Error Value: White=0.10 (very precise) /Black=0.12 (very precise)} 1-0

[Event "Italian-ch Teams-B 2022"]
[Site "Montesilvano"]
[Date "2022.04.20"]
[Round "3.1"]
[White "Caprio, Guido"]
[Black "Dardha, Daniel"]
[Result "0-1"]
[ECO "E52"]
[WhiteElo "2426"]
[BlackElo "2541"]
[Annotator "TA"]
[PlyCount "74"]
[EventDate "2022.04.19"]
[EventType "team-tourn"]
[EventCountry "ITA"]
[SourceTitle "playchess.com"]
[Source "ChessBase"]
[SourceQuality "1"]
[TimeControl "40/5400+30:1800+30"]

{[%evp 22,74,38,32,41,41,45,12,39,1,29,0,0,-104,22,-46,-46,-31,0,0,0,-127,-137,-150,-145,-148,-141,-151,-175,-168,-174,-134,-149,-383,-118,-127,-117,-258,-239,-243,-249,-254,-254,-259,-214,-235,-246,-283,-258,-453,-339,-497,-485,-468,-435]} 1. d4 {[%emt 0:00:19]} d5 {[%emt 0:04:18]} 2. c4 {[%emt 0:00:09]} e6 {[%emt 0:00:08]} 3. Nf3 {[%emt 0:00:04]} Nf6 {[%emt 0:00:37]} 4. Nc3 {[%emt 0:00:08]} Bb4 {[%emt 0:04:04]} 5. e3 {[%emt 0:00:12]} O-O {[%emt 0:00:15]} 6. Bd3 {[%emt 0:00:02]} b6 {[%emt 0:00:30]} 7. O-O {[%emt 0:00:18]} dxc4 {[%emt 0:01:42]} 8. Bxc4 {[%emt 0:00:05]} Bb7 {[%emt 0:00:39]} 9. a3 {[%emt 0:01:04]} Bxc3 {[%emt 0:00:47]} 10. bxc3 {[%emt 0:00:23]} c5 {[%emt 0:00:13]} 11. Qe2 {[%emt 0:07:24]} Nbd7 {[%emt 0:03:52]} 12. Bb2 {[%emt 0:00:31] [#]} Re8 $5 $146 {[%emt 0:05:36][%mdl 8] New and interesting. E52: Nimzo-Indian: Rubinstein: 4...0-0 5 Nf3 d5 6 Bd3 b6.} ({Predecessor:} 12... Qc7 13. Bd3 Be4 14. Bxe4 Nxe4 15. c4 Rfd8 16. Rac1 Qb7 17. Rfd1 Rac8 18. Ba1 h6 19. Qb2 Ndf6 20. Ne5 cxd4 21. exd4 {0-1 (47) Kortschnoj,V (2601)-Xu,J (2589) Mallorca 2004}) 13. Rfd1 {[%emt 0:00:44]} Qc7 {[%emt 0:00:33]} 14. Rac1 {[%emt 0:00:27]} Rac8 {[%emt 0:03:59] The position is equal.} 15. h3 {[%emt 0:02:09]} e5 {[%emt 0:06:17]} 16. Ng5 {[%emt 0:10:46]} Rf8 {[%emt 0:02:50]} 17. d5 {[%emt 0:08:40]} (17. a4 $11 {keeps the balance.}) 17... h6 {[%emt 0:02:37] [#]} ({Black should try} 17... e4 $1 $17 {White must now prevent ...Ne5.} 18. d6 Qb8) 18. d6 $1 {[%emt 0:03:48]} Qb8 $15 {[%emt 0:05:05]} 19. Nf3 {[%emt 0:00:04]} e4 {[%emt 0:06:25]} 20. Nh4 {[%emt 0:04:37]} Ne5 {[%emt 0:00:35] Inhibits Ng6.} 21. Bb5 {[%emt 0:00:51]} (21. Nf5 $11) 21... c4 $1 $17 {[%emt 0:05:49] And now ...a6 would win.} 22. Rd4 {[%emt 0:02:28]} Rc5 $1 {[%emt 0:17:31]} 23. a4 {[%emt 0:00:46]} Nd3 $1 {[%emt 0:05:18]} 24. Bxc4 {[%emt 0:04:11] [#]} Rxc4 {[%emt 0:08:52][%mdl 512]} 25. Rxc4 {[%emt 0:00:04]} Nxc1 {[%emt 0:00:07]} 26. Bxc1 {[%emt 0:00:02]} Ba6 $1 {[%emt 0:01:08]} ({Weaker is} 26... Qxd6 27. Rd4 Qc5 28. Qb5 $15) 27. Ba3 {[%emt 0:02:02]} (27. Nf5 $17) 27... Bxc4 $2 {[%emt 0:05:47]} (27... Qe8 $1 $19 {and Black stays clearly on top.} 28. d7 Qxd7 29. Bxf8 Kxf8) 28. Qxc4 {[%emt 0:00:05]} Qc8 $1 $36 {[%emt 0:00:08][%mdl 2048] Black is really pushing.} 29. Qb3 {[%emt 0:03:30]} (29. Qb5 $17) 29... Qe6 $1 $19 {[%emt 0:03:04]} 30. Qxe6 {[%emt 0:00:09]} fxe6 {[%emt 0:00:02][%mdl 4096] Endgame KRN-KBN} 31. Ng6 {[%emt 0:00:05]} Rd8 {[%emt 0:00:17]} 32. Ne5 {[%emt 0:00:49]} Nd7 $1 {[%emt 0:00:26]} 33. Nc6 {[%emt 0:00:14] [#]} Ra8 {[%emt 0:00:03]} 34. Kh2 {[%emt 0:04:25]} Kf7 {[%emt 0:00:19] Hoping for ...a6.} 35. Ne7 $2 {[%emt 0:00:08]} (35. a5) 35... Ke8 {[%emt 0:02:13]} 36. Kg3 {[%emt 0:01:04]} (36. c4 $142 Ne5 37. Bb2 Nxc4 38. Bxg7) 36... Ne5 {[%emt 0:00:27]} 37. Kf4 {[%emt 0:01:10] [#]} Nc4 $1 {[%emt 0:00:18] Weighted Error Value: White=0.55/Black=0.25 (precise)} 0-1